[Event "Live Chess"]
[Site "Chess.com"]
[Date "2011.01.21"]
[Round "-"]
[White "junrosales"]
[Black "hipposcottimus"]
[Result "0-1"]
[CurrentPosition "3r4/2Rr1kp1/3n2p1/8/5K2/P7/7P/8 w - -"]
[Timezone "UTC"]
[ECO "C23"]
[ECOUrl "https://www.chess.com/openings/Bishops-Opening-2...Nc6"]
[UTCDate "2011.01.21"]
[UTCTime "23:52:53"]
[WhiteElo "1488"]
[BlackElo "1401"]
[TimeControl "600"]
[Termination "hipposcottimus won by resignation"]
[StartTime "23:52:53"]
[EndDate "2011.01.22"]
[EndTime "00:05:39"]
[Link "https://www.chess.com/game/live/90005262"]

1. e4 {[%clk 0:10:00]} 1... e5 {[%clk 0:10:00]} 2. Bc4 {[%clk 0:09:57.8]} 2... Nc6 {[%clk 0:09:59.5]} 3. c3 {[%clk 0:09:56.1]} 3... Nf6 {[%clk 0:09:57.1]} 4. d3 {[%clk 0:09:55.3]} 4... d5 {[%clk 0:09:55.7]} 5. exd5 {[%clk 0:09:53.1]} 5... Na5 {[%clk 0:09:55.4]} 6. Nf3 {[%clk 0:09:37.7]} 6... Nxc4 {[%clk 0:09:52.6]} 7. dxc4 {[%clk 0:09:36]} 7... Bd6 {[%clk 0:09:51.2]} 8. O-O {[%clk 0:09:26.1]} 8... e4 {[%clk 0:09:49.3]} 9. Re1 {[%clk 0:09:24.3]} 9... O-O {[%clk 0:09:46.1]} 10. Nd4 {[%clk 0:09:22.6]} 10... Bg4 {[%clk 0:09:42.5]} 11. Qb3 {[%clk 0:09:06.5]} 11... c5 {[%clk 0:09:31.1]} 12. Nb5 {[%clk 0:09:01.2]} 12... a6 {[%clk 0:08:47.3]} 13. Nxd6 {[%clk 0:08:58.8]} 13... Qxd6 {[%clk 0:08:47]} 14. Be3 {[%clk 0:08:57.6]} 14... b6 {[%clk 0:08:42.1]} 15. Nd2 {[%clk 0:08:55.8]} 15... Nd7 {[%clk 0:08:13.5]} 16. Qc2 {[%clk 0:08:52.6]} 16... f5 {[%clk 0:08:11.2]} 17. a3 {[%clk 0:08:43.1]} 17... f4 {[%clk 0:08:06.3]} 18. Nxe4 {[%clk 0:08:36.3]} 18... Qg6 {[%clk 0:07:30.7]} 19. Bd2 {[%clk 0:07:20.2]} 19... Bf3 {[%clk 0:07:24.8]} 20. g3 {[%clk 0:07:10]} 20... Bxe4 {[%clk 0:07:19.3]} 21. Qxe4 {[%clk 0:07:05.3]} 21... fxg3 {[%clk 0:06:44.1]} 22. Qxg6 {[%clk 0:07:02]} 22... gxf2+ {[%clk 0:06:41.9]} 23. Kg2 {[%clk 0:06:26.6]} 23... fxe1=Q {[%clk 0:06:38.2]} 24. Rxe1 {[%clk 0:06:19.3]} 24... hxg6 {[%clk 0:06:35.2]} 25. Re6 {[%clk 0:05:51.5]} 25... Kf7 {[%clk 0:05:50.7]} 26. Bg5 {[%clk 0:05:43.6]} 26... Rfe8 {[%clk 0:05:28.8]} 27. Rd6 {[%clk 0:05:29.6]} 27... Ra7 {[%clk 0:05:15.6]} 28. Kf2 {[%clk 0:05:11.5]} 28... Ne5 {[%clk 0:05:03.6]} 29. Rxb6 {[%clk 0:05:00.4]} 29... Nxc4 {[%clk 0:04:55.9]} 30. Rc6 {[%clk 0:04:51.4]} 30... Nxb2 {[%clk 0:04:37.1]} 31. Rxc5 {[%clk 0:04:49.9]} 31... Na4 {[%clk 0:04:34.9]} 32. Rc6 {[%clk 0:04:45.1]} 32... Rb7 {[%clk 0:04:19.9]} 33. Rxa6 {[%clk 0:04:42.6]} 33... Nxc3 {[%clk 0:04:18.5]} 34. d6 {[%clk 0:04:35.9]} 34... Ne4+ {[%clk 0:04:06.7]} 35. Kf3 {[%clk 0:04:18.8]} 35... Nxg5+ {[%clk 0:04:05.5]} 36. Kg4 {[%clk 0:04:16.3]} 36... Ne4 {[%clk 0:03:56.6]} 37. Rc6 {[%clk 0:04:07.6]} 37... Rd7 {[%clk 0:03:39.5]} 38. Rc7 {[%clk 0:04:02.9]} 38... Rd8 {[%clk 0:03:37.3]} 39. Kf4 {[%clk 0:03:58.2]} 39... Nxd6 {[%clk 0:03:35.9]} 0-1

[Event "Live Chess"]
[Site "Chess.com"]
[Date "2011.01.21"]
[Round "-"]
[White "hipposcottimus"]
[Black "bojanp81"]
[Result "0-1"]
[CurrentPosition "2r2rk1/5pbp/4p1p1/p3P1B1/Pn1P4/1Bq1Q3/6PP/R4RK1 w - -"]
[Timezone "UTC"]
[ECO "B06"]
[ECOUrl "https://www.chess.com/openings/Modern-Defense-with-1-e4-2.d4-Bg7"]
[UTCDate "2011.01.21"]
[UTCTime "20:01:58"]
[WhiteElo "1390"]
[BlackElo "1484"]
[TimeControl "420+3"]
[Termination "bojanp81 won on time"]
[StartTime "20:01:58"]
[EndDate "2011.01.21"]
[EndTime "20:13:39"]
[Link "https://www.chess.com/game/live/89939473"]

1. e4 {[%clk 0:07:00]} 1... g6 {[%clk 0:07:00]} 2. d4 {[%clk 0:07:01.7]} 2... Bg7 {[%clk 0:07:02.4]} 3. e5 {[%clk 0:07:04.4]} 3... d6 {[%clk 0:07:04]} 4. f4 {[%clk 0:07:07.1]} 4... b6 {[%clk 0:06:56.3]} 5. Qf3 {[%clk 0:07:01.5]} 5... c6 {[%clk 0:06:45.6]} 6. Bb5 {[%clk 0:06:59.5]} 6... Bd7 {[%clk 0:06:44.7]} 7. Bc4 {[%clk 0:06:56.3]} 7... b5 {[%clk 0:06:44.5]} 8. Bb3 {[%clk 0:06:56.4]} 8... Nh6 {[%clk 0:06:40]} 9. Ne2 {[%clk 0:06:48.2]} 9... Bg4 {[%clk 0:06:33.7]} 10. Qf2 {[%clk 0:06:07.7]} 10... Nf5 {[%clk 0:06:30.1]} 11. Nbc3 {[%clk 0:05:54.4]} 11... Na6 {[%clk 0:06:13.3]} 12. Ng3 {[%clk 0:05:36]} 12... b4 {[%clk 0:06:04.5]} 13. Nxf5 {[%clk 0:05:31]} 13... Bxf5 {[%clk 0:06:06.2]} 14. Ne2 {[%clk 0:05:24.6]} 14... O-O {[%clk 0:06:00]} 15. Ng3 {[%clk 0:05:09.6]} 15... Qc8 {[%clk 0:05:37.2]} 16. c3 {[%clk 0:04:33.3]} 16... c5 {[%clk 0:05:36.2]} 17. Nxf5 {[%clk 0:04:17]} 17... Qxf5 {[%clk 0:05:35.6]} 18. Bc2 {[%clk 0:04:16.3]} 18... Qc8 {[%clk 0:05:31.6]} 19. O-O {[%clk 0:03:58.5]} 19... dxe5 {[%clk 0:05:31.1]} 20. fxe5 {[%clk 0:03:17.5]} 20... bxc3 {[%clk 0:05:29.3]} 21. bxc3 {[%clk 0:03:16.1]} 21... cxd4 {[%clk 0:05:30.9]} 22. cxd4 {[%clk 0:03:15.5]} 22... Nb4 {[%clk 0:05:30.2]} 23. Bb3 {[%clk 0:03:13.3]} 23... a5 {[%clk 0:05:21.9]} 24. a4 {[%clk 0:02:01.9]} 24... e6 {[%clk 0:05:17.4]} 25. Bg5 {[%clk 0:01:17]} 25... Qc3 {[%clk 0:04:52]} 26. Qe3 {[%clk 0:00:30.5]} 26... Rac8 {[%clk 0:04:38.2]} 0-1

[Event "Live Chess"]
[Site "Chess.com"]
[Date "2011.01.21"]
[Round "-"]
[White "bojanp81"]
[Black "hipposcottimus"]
[Result "1-0"]
[CurrentPosition "4Q2k/p5qp/5p2/8/3p4/3Pb2P/2P3P1/5R1K b - -"]
[Timezone "UTC"]
[ECO "C55"]
[ECOUrl "https://www.chess.com/openings/Italian-Game-Two-Knights-Modern-Bishops-Opening-4...d5-5.exd5-Nxd5"]
[UTCDate "2011.01.21"]
[UTCTime "19:50:27"]
[WhiteElo "1478"]
[BlackElo "1396"]
[TimeControl "420+3"]
[Termination "bojanp81 won by resignation"]
[StartTime "19:50:27"]
[EndDate "2011.01.21"]
[EndTime "20:01:09"]
[Link "https://www.chess.com/game/live/89936253"]

1. e4 {[%clk 0:07:00]} 1... e5 {[%clk 0:07:00]} 2. Nf3 {[%clk 0:07:02.3]} 2... Nc6 {[%clk 0:07:00.7]} 3. Bc4 {[%clk 0:07:04.5]} 3... Nf6 {[%clk 0:07:02.1]} 4. d3 {[%clk 0:07:06.8]} 4... d5 {[%clk 0:07:03.6]} 5. exd5 {[%clk 0:07:08.6]} 5... Nxd5 {[%clk 0:07:05.8]} 6. h3 {[%clk 0:07:09.2]} 6... Nf6 {[%clk 0:06:38.4]} 7. O-O {[%clk 0:07:08.7]} 7... Bd6 {[%clk 0:06:36.9]} 8. Re1 {[%clk 0:07:08.6]} 8... O-O {[%clk 0:06:36.5]} 9. a3 {[%clk 0:07:09]} 9... Bc5 {[%clk 0:06:18.7]} 10. Be3 {[%clk 0:07:09.9]} 10... Nd4 {[%clk 0:06:17.8]} 11. Nxd4 {[%clk 0:07:10.7]} 11... exd4 {[%clk 0:06:18.3]} 12. Bg5 {[%clk 0:07:11.9]} 12... Qd6 {[%clk 0:06:17.8]} 13. Nd2 {[%clk 0:07:10.3]} 13... Bf5 {[%clk 0:05:55.3]} 14. Qf3 {[%clk 0:07:11.8]} 14... Qd7 {[%clk 0:05:21.2]} 15. b4 {[%clk 0:07:05.4]} 15... Bb6 {[%clk 0:04:44.9]} 16. Bxf6 {[%clk 0:07:07.3]} 16... gxf6 {[%clk 0:04:29.3]} 17. Qxb7 {[%clk 0:07:08.7]} 17... Qd6 {[%clk 0:03:48.4]} 18. Qf3 {[%clk 0:07:08.2]} 18... Bg6 {[%clk 0:03:40.7]} 19. Ne4 {[%clk 0:07:02.5]} 19... Bxe4 {[%clk 0:03:36.6]} 20. Rxe4 {[%clk 0:07:04.3]} 20... c6 {[%clk 0:03:34.6]} 21. Rae1 {[%clk 0:07:05.5]} 21... Bc7 {[%clk 0:03:34.3]} 22. Qg4+ {[%clk 0:06:54]} 22... Kh8 {[%clk 0:03:28.5]} 23. f4 {[%clk 0:06:52.6]} 23... c5 {[%clk 0:03:13.6]} 24. Qh5 {[%clk 0:06:29.3]} 24... cxb4 {[%clk 0:02:40.9]} 25. axb4 {[%clk 0:06:30.3]} 25... Qxb4 {[%clk 0:02:42.7]} 26. Bxf7 {[%clk 0:06:26.6]} 26... Bxf4 {[%clk 0:02:21.1]} 27. Rf1 {[%clk 0:06:04.8]} 27... Be3+ {[%clk 0:02:11.5]} 28. Kh1 {[%clk 0:06:06.7]} 28... Qb7 {[%clk 0:01:33.8]} 29. Bd5 {[%clk 0:06:08.4]} 29... Qg7 {[%clk 0:00:42]} 30. Bxa8 {[%clk 0:06:08]} 30... Rxa8 {[%clk 0:00:41.8]} 31. Re8+ {[%clk 0:05:58.1]} 31... Rxe8 {[%clk 0:00:43.5]} 32. Qxe8+ {[%clk 0:06:00]} 1-0

[Event "Live Chess"]
[Site "Chess.com"]
[Date "2011.01.21"]
[Round "-"]
[White "hipposcottimus"]
[Black "marcusX"]
[Result "0-1"]
[CurrentPosition "r7/1p3p1p/1kp5/1p2Q3/2q2P2/1PP1P3/7r/2KR4 b - -"]
[Timezone "UTC"]
[ECO "B01"]
[ECOUrl "https://www.chess.com/openings/Scandinavian-Defense-Modern-Variation"]
[UTCDate "2011.01.21"]
[UTCTime "03:05:30"]
[WhiteElo "1402"]
[BlackElo "1569"]
[TimeControl "420"]
[Termination "marcusX won by resignation"]
[StartTime "03:05:30"]
[EndDate "2011.01.21"]
[EndTime "03:16:48"]
[Link "https://www.chess.com/game/live/89702306"]

1. e4 {[%clk 0:07:00]} 1... d5 {[%clk 0:07:00]} 2. exd5 {[%clk 0:06:59]} 2... Nf6 {[%clk 0:06:58.3]} 3. Bc4 {[%clk 0:06:57.3]} 3... Nxd5 {[%clk 0:06:55.5]} 4. Bxd5 {[%clk 0:06:57]} 4... Qxd5 {[%clk 0:06:53.9]} 5. Nf3 {[%clk 0:06:45.2]} 5... Bg4 {[%clk 0:06:50.3]} 6. Nc3 {[%clk 0:06:31.9]} 6... Qc6 {[%clk 0:06:47.3]} 7. d4 {[%clk 0:06:24.4]} 7... Bxf3 {[%clk 0:06:44.2]} 8. gxf3 {[%clk 0:06:24.1]} 8... e6 {[%clk 0:06:36.6]} 9. Rg1 {[%clk 0:06:07.5]} 9... Nd7 {[%clk 0:06:29.7]} 10. d5 {[%clk 0:06:01.8]} 10... exd5 {[%clk 0:06:21.5]} 11. Nxd5 {[%clk 0:05:47.9]} 11... O-O-O {[%clk 0:06:17.4]} 12. Bf4 {[%clk 0:05:44.5]} 12... Qe6+ {[%clk 0:06:11.2]} 13. Be3 {[%clk 0:05:30.6]} 13... Nb6 {[%clk 0:06:00.3]} 14. Nxb6+ {[%clk 0:05:24]} 14... axb6 {[%clk 0:05:50.2]} 15. Qe2 {[%clk 0:05:22]} 15... Bc5 {[%clk 0:05:40.1]} 16. Rg4 {[%clk 0:05:12.3]} 16... Bxe3 {[%clk 0:05:24.8]} 17. fxe3 {[%clk 0:05:09.7]} 17... Qh6 {[%clk 0:05:15.3]} 18. Ra4 {[%clk 0:04:37.2]} 18... c6 {[%clk 0:04:58.6]} 19. Ra3 {[%clk 0:04:36.7]} 19... b5 {[%clk 0:04:31.4]} 20. Rc3 {[%clk 0:04:17.5]} 20... Rhe8 {[%clk 0:04:25.2]} 21. f4 {[%clk 0:04:14.4]} 21... Rd5 {[%clk 0:04:07.7]} 22. Rd3 {[%clk 0:03:55.3]} 22... Rh5 {[%clk 0:03:58.5]} 23. O-O-O {[%clk 0:03:47.7]} 23... Rxh2 {[%clk 0:03:54.6]} 24. Qg4+ {[%clk 0:03:44]} 24... Qe6 {[%clk 0:03:39.2]} 25. Qxg7 {[%clk 0:03:16.5]} 25... Qxa2 {[%clk 0:03:35.2]} 26. Ra3 {[%clk 0:03:05.9]} 26... Qc4 {[%clk 0:03:12.9]} 27. Ra8+ {[%clk 0:02:44.9]} 27... Kc7 {[%clk 0:03:08.9]} 28. c3 {[%clk 0:00:54]} 28... Rxa8 {[%clk 0:02:59.4]} 29. Qe5+ {[%clk 0:00:46.7]} 29... Kb6 {[%clk 0:02:50.3]} 30. b3 {[%clk 0:00:06.8]} 0-1

[Event "Live Chess"]
[Site "Chess.com"]
[Date "2011.01.21"]
[Round "-"]
[White "hipposcottimus"]
[Black "spike7780"]
[Result "1-0"]
[CurrentPosition "r2q4/pp4kB/n1p1p1Q1/8/8/8/PPP3PP/5RK1 b - -"]
[Timezone "UTC"]
[ECO "B01"]
[ECOUrl "https://www.chess.com/openings/Scandinavian-Defense-Mieses-Kotrc-Variation-3.Nc3-Qd8-4.d4-c6"]
[UTCDate "2011.01.21"]
[UTCTime "02:57:55"]
[WhiteElo "1407"]
[BlackElo "1356"]
[TimeControl "600"]
[Termination "hipposcottimus won by resignation"]
[StartTime "02:57:55"]
[EndDate "2011.01.21"]
[EndTime "03:00:44"]
[Link "https://www.chess.com/game/live/89700638"]

1. e4 {[%clk 0:10:00]} 1... d5 {[%clk 0:10:00]} 2. exd5 {[%clk 0:09:58.2]} 2... Qxd5 {[%clk 0:09:59.5]} 3. Nc3 {[%clk 0:09:57.9]} 3... Qd8 {[%clk 0:09:59.1]} 4. d4 {[%clk 0:09:56.7]} 4... c6 {[%clk 0:09:57.6]} 5. f4 {[%clk 0:09:52.8]} 5... Nf6 {[%clk 0:09:52.2]} 6. Nf3 {[%clk 0:09:51.5]} 6... Bg4 {[%clk 0:09:50.2]} 7. Be2 {[%clk 0:09:49.7]} 7... Bxf3 {[%clk 0:09:49.5]} 8. Bxf3 {[%clk 0:09:49.3]} 8... e6 {[%clk 0:09:49.1]} 9. O-O {[%clk 0:09:49]} 9... Bb4 {[%clk 0:09:48.5]} 10. Ne4 {[%clk 0:09:39.4]} 10... Nxe4 {[%clk 0:09:47.2]} 11. Bxe4 {[%clk 0:09:38.9]} 11... Ba5 {[%clk 0:09:41.9]} 12. f5 {[%clk 0:09:29.2]} 12... O-O {[%clk 0:09:33.9]} 13. Qd3 {[%clk 0:09:17.6]} 13... Bb6 {[%clk 0:09:30.1]} 14. fxe6 {[%clk 0:09:15.7]} 14... fxe6 {[%clk 0:09:28.5]} 15. Bxh7+ {[%clk 0:09:14.3]} 15... Kh8 {[%clk 0:09:25.9]} 16. Be3 {[%clk 0:08:38]} 16... Rxf1+ {[%clk 0:09:23.6]} 17. Rxf1 {[%clk 0:08:36.2]} 17... Bxd4 {[%clk 0:09:22.5]} 18. Bxd4 {[%clk 0:08:34.9]} 18... Na6 {[%clk 0:09:15.5]} 19. Bxg7+ {[%clk 0:08:26.6]} 19... Kxg7 {[%clk 0:08:56.8]} 20. Qg6+ {[%clk 0:08:24.4]} 1-0

[Event "Live Chess"]
[Site "Chess.com"]
[Date "2011.01.21"]
[Round "-"]
[White "spike7780"]
[Black "hipposcottimus"]
[Result "1-0"]
[CurrentPosition "8/5K1k/8/8/8/7R/8/8 b - -"]
[Timezone "UTC"]
[ECO "C20"]
[ECOUrl "https://www.chess.com/openings/Portuguese-Opening"]
[UTCDate "2011.01.21"]
[UTCTime "02:41:55"]
[WhiteElo "1356"]
[BlackElo "1407"]
[TimeControl "600"]
[Termination "spike7780 won by checkmate"]
[StartTime "02:41:55"]
[EndDate "2011.01.21"]
[EndTime "02:57:34"]
[Link "https://www.chess.com/game/live/89697105"]

1. e4 {[%clk 0:10:00]} 1... e5 {[%clk 0:10:00]} 2. Bb5 {[%clk 0:09:58.3]} 2... Nc6 {[%clk 0:09:59.5]} 3. Bxc6 {[%clk 0:09:57.2]} 3... dxc6 {[%clk 0:09:59]} 4. Nf3 {[%clk 0:09:56.1]} 4... Bd6 {[%clk 0:09:56.3]} 5. h3 {[%clk 0:09:52.9]} 5... c5 {[%clk 0:09:55.9]} 6. d3 {[%clk 0:09:50.8]} 6... f5 {[%clk 0:09:55.3]} 7. Qe2 {[%clk 0:09:45.1]} 7... Nf6 {[%clk 0:09:52.3]} 8. Bg5 {[%clk 0:09:43]} 8... fxe4 {[%clk 0:09:46.2]} 9. Qxe4 {[%clk 0:09:40.5]} 9... Nxe4 {[%clk 0:09:24.3]} 10. Bxd8 {[%clk 0:09:39.2]} 10... O-O {[%clk 0:09:20.8]} 11. dxe4 {[%clk 0:09:36.1]} 11... Rxd8 {[%clk 0:09:19.5]} 12. Nc3 {[%clk 0:09:33.2]} 12... c4 {[%clk 0:09:17]} 13. Nd5 {[%clk 0:09:31.5]} 13... c6 {[%clk 0:09:15.9]} 14. Ne3 {[%clk 0:09:18.3]} 14... c3 {[%clk 0:09:15]} 15. bxc3 {[%clk 0:09:14.7]} 15... Bc5 {[%clk 0:09:14.1]} 16. O-O {[%clk 0:09:09.6]} 16... Bxe3 {[%clk 0:09:07.7]} 17. fxe3 {[%clk 0:09:08.1]} 17... b6 {[%clk 0:08:57.7]} 18. Nxe5 {[%clk 0:09:06.5]} 18... Re8 {[%clk 0:08:54.1]} 19. Nxc6 {[%clk 0:09:04.1]} 19... Rxe4 {[%clk 0:08:49.3]} 20. Rf3 {[%clk 0:08:58.9]} 20... Bb7 {[%clk 0:08:46.8]} 21. Nd4 {[%clk 0:08:46.3]} 21... Ba6 {[%clk 0:08:41.8]} 22. Re1 {[%clk 0:08:39.8]} 22... Rc8 {[%clk 0:08:39.1]} 23. Rf4 {[%clk 0:08:27.9]} 23... Re7 {[%clk 0:08:05.5]} 24. e4 {[%clk 0:08:14.5]} 24... Rxc3 {[%clk 0:08:02.6]} 25. e5 {[%clk 0:08:10.1]} 25... Ra3 {[%clk 0:07:59.6]} 26. Nc6 {[%clk 0:08:00.8]} 26... Re8 {[%clk 0:07:48.8]} 27. Nxa7 {[%clk 0:07:46]} 27... Rxa2 {[%clk 0:07:46.4]} 28. e6 {[%clk 0:07:32.6]} 28... Rxc2 {[%clk 0:07:27.7]} 29. Ra4 {[%clk 0:07:21.3]} 29... Bb7 {[%clk 0:06:53.2]} 30. Rd4 {[%clk 0:07:06.7]} 30... Rxg2+ {[%clk 0:06:47.9]} 31. Kf1 {[%clk 0:07:02.5]} 31... Rh2 {[%clk 0:06:29.7]} 32. Kg1 {[%clk 0:06:38.3]} 32... Rh1+ {[%clk 0:06:06]} 33. Kf2 {[%clk 0:06:37.2]} 33... Rf8+ {[%clk 0:05:54.9]} 34. Ke2 {[%clk 0:06:33.4]} 34... Bf3+ {[%clk 0:05:43.5]} 35. Kd2 {[%clk 0:06:31.5]} 35... Rxh3 {[%clk 0:05:18.2]} 36. e7 {[%clk 0:06:25.3]} 36... Re8 {[%clk 0:04:54.6]} 37. Rd8 {[%clk 0:06:19.1]} 37... Bh5 {[%clk 0:04:37.9]} 38. Nc8 {[%clk 0:06:08.3]} 38... b5 {[%clk 0:04:09.3]} 39. Nd6 {[%clk 0:06:06.1]} 39... Rh2+ {[%clk 0:04:03.1]} 40. Kc3 {[%clk 0:06:00.7]} 40... Rh3+ {[%clk 0:03:10.6]} 41. Kb4 {[%clk 0:05:58.8]} 41... Rh4+ {[%clk 0:02:53.4]} 42. Kxb5 {[%clk 0:05:54.5]} 42... g5 {[%clk 0:02:41.8]} 43. Nxe8 {[%clk 0:05:51.4]} 43... Kf7 {[%clk 0:02:26.7]} 44. Nd6+ {[%clk 0:05:40.4]} 44... Kf6 {[%clk 0:02:20.2]} 45. Rf8+ {[%clk 0:05:33.8]} 45... Kg7 {[%clk 0:02:07.7]} 46. Rff1 {[%clk 0:05:16.9]} 46... g4 {[%clk 0:01:56.8]} 47. Rh1 {[%clk 0:05:09.8]} 47... Rh3 {[%clk 0:01:53.5]} 48. Rxh3 {[%clk 0:05:08]} 48... gxh3 {[%clk 0:01:52.7]} 49. Rh1 {[%clk 0:05:06.8]} 49... Kf6 {[%clk 0:01:46.4]} 50. e8=Q {[%clk 0:05:03.3]} 50... Bxe8+ {[%clk 0:01:44.6]} 51. Nxe8+ {[%clk 0:05:02.1]} 51... Ke7 {[%clk 0:01:44.4]} 52. Ng7 {[%clk 0:04:58]} 52... Kf7 {[%clk 0:01:35]} 53. Nh5 {[%clk 0:04:56.9]} 53... Kg6 {[%clk 0:01:32]} 54. Ng3 {[%clk 0:04:55.4]} 54... h5 {[%clk 0:01:31.5]} 55. Rxh3 {[%clk 0:04:54.1]} 55... Kg5 {[%clk 0:01:30.6]} 56. Ne4+ {[%clk 0:04:46.5]} 56... Kg4 {[%clk 0:01:27.8]} 57. Rh1 {[%clk 0:04:43.9]} 57... h4 {[%clk 0:01:25.2]} 58. Kc4 {[%clk 0:04:38.3]} 58... h3 {[%clk 0:01:20.3]} 59. Nf2+ {[%clk 0:04:34.4]} 59... Kg3 {[%clk 0:01:17.9]} 60. Nxh3 {[%clk 0:04:33.4]} 60... Kg2 {[%clk 0:01:15.1]} 61. Rc1 {[%clk 0:04:32.2]} 61... Kxh3 {[%clk 0:01:13.7]} 62. Rg1 {[%clk 0:04:31.3]} 62... Kh2 {[%clk 0:01:12.5]} 63. Rg8 {[%clk 0:04:30.1]} 63... Kh3 {[%clk 0:01:08.5]} 64. Kd4 {[%clk 0:04:29.6]} 64... Kh4 {[%clk 0:01:08.2]} 65. Ke4 {[%clk 0:04:29.1]} 65... Kh5 {[%clk 0:01:08]} 66. Kf5 {[%clk 0:04:28.5]} 66... Kh6 {[%clk 0:01:07.8]} 67. Kf6 {[%clk 0:04:27.1]} 67... Kh7 {[%clk 0:00:57.3]} 68. Rg1 {[%clk 0:04:25.7]} 68... Kh8 {[%clk 0:00:48.4]} 69. Rg2 {[%clk 0:04:24.9]} 69... Kh7 {[%clk 0:00:43.5]} 70. Rg3 {[%clk 0:04:22.2]} 70... Kh8 {[%clk 0:00:42.3]} 71. Kf7 {[%clk 0:04:21]} 71... Kh7 {[%clk 0:00:37.3]} 72. Rh3# {[%clk 0:04:20.1]} 1-0

[Event "Live Chess"]
[Site "Chess.com"]
[Date "2011.01.21"]
[Round "-"]
[White "hipposcottimus"]
[Black "DavidEmery"]
[Result "1-0"]
[CurrentPosition "r2qkb1r/3bp1p1/p4nQ1/1pp1P1p1/3n1B2/2N5/PPP2PPP/R3K2R b KQ -"]
[Timezone "UTC"]
[ECO "B51"]
[ECOUrl "https://www.chess.com/openings/Sicilian-Defense-Canal-Attack-3...Nc6"]
[UTCDate "2011.01.21"]
[UTCTime "02:35:40"]
[WhiteElo "1407"]
[BlackElo "1508"]
[TimeControl "120+8"]
[Termination "hipposcottimus won by checkmate"]
[StartTime "02:35:40"]
[EndDate "2011.01.21"]
[EndTime "02:38:24"]
[Link "https://www.chess.com/game/live/89695880"]

1. e4 {[%clk 0:02:00]} 1... c5 {[%clk 0:02:00]} 2. Nf3 {[%clk 0:02:07.7]} 2... Nc6 {[%clk 0:02:05.4]} 3. Bb5 {[%clk 0:02:15.4]} 3... d6 {[%clk 0:02:04.2]} 4. d4 {[%clk 0:02:20.5]} 4... Bd7 {[%clk 0:02:10]} 5. dxc5 {[%clk 0:02:24.4]} 5... dxc5 {[%clk 0:02:14.1]} 6. Nc3 {[%clk 0:02:28.4]} 6... a6 {[%clk 0:02:18.7]} 7. Bc4 {[%clk 0:02:30.4]} 7... b5 {[%clk 0:02:23.1]} 8. Bxf7+ {[%clk 0:02:30.7]} 8... Kxf7 {[%clk 0:02:29.2]} 9. Ng5+ {[%clk 0:02:38]} 9... Ke8 {[%clk 0:02:34.3]} 10. Qf3 {[%clk 0:02:35.7]} 10... Nf6 {[%clk 0:02:34.4]} 11. Bf4 {[%clk 0:02:28.9]} 11... Nd4 {[%clk 0:02:37.8]} 12. Qd3 {[%clk 0:02:22.1]} 12... h6 {[%clk 0:02:34.1]} 13. e5 {[%clk 0:02:28.2]} 13... hxg5 {[%clk 0:02:25.6]} 14. Qg6# {[%clk 0:02:33.9]} 1-0

[Event "Live Chess"]
[Site "Chess.com"]
[Date "2011.01.20"]
[Round "-"]
[White "MalikBerger"]
[Black "hipposcottimus"]
[Result "0-1"]
[CurrentPosition "r4rk1/pp4pp/8/3qB1Q1/3Pp1b1/P4n2/1PP2P1P/R3R1K1 w - -"]
[Timezone "UTC"]
[ECO "C60"]
[ECOUrl "https://www.chess.com/openings/Ruy-Lopez-Opening"]
[UTCDate "2011.01.20"]
[UTCTime "19:19:40"]
[WhiteElo "1400"]
[BlackElo "1395"]
[TimeControl "600+1"]
[Termination "hipposcottimus won by resignation"]
[StartTime "19:19:40"]
[EndDate "2011.01.20"]
[EndTime "19:28:39"]
[Link "https://www.chess.com/game/live/89581807"]

1. e4 {[%clk 0:10:00]} 1... e5 {[%clk 0:10:00]} 2. Nf3 {[%clk 0:09:59.9]} 2... Nc6 {[%clk 0:09:59.1]} 3. Bb5 {[%clk 0:09:59.6]} 3... Nce7 {[%clk 0:09:55.3]} 4. Nxe5 {[%clk 0:09:53.2]} 4... c6 {[%clk 0:09:52.8]} 5. Be2 {[%clk 0:09:47.3]} 5... d5 {[%clk 0:09:52.8]} 6. exd5 {[%clk 0:09:44.4]} 6... cxd5 {[%clk 0:09:52.9]} 7. d4 {[%clk 0:09:42]} 7... Nf5 {[%clk 0:09:24]} 8. Nc3 {[%clk 0:09:33.1]} 8... Bb4 {[%clk 0:09:17.1]} 9. Qd3 {[%clk 0:09:23.4]} 9... Nf6 {[%clk 0:08:30]} 10. O-O {[%clk 0:09:20.7]} 10... O-O {[%clk 0:08:16.6]} 11. a3 {[%clk 0:08:59.8]} 11... Ba5 {[%clk 0:08:04.9]} 12. Bg5 {[%clk 0:08:40.2]} 12... Qd6 {[%clk 0:07:54.3]} 13. Bf3 {[%clk 0:08:32.8]} 13... Bxc3 {[%clk 0:07:08.8]} 14. Qxc3 {[%clk 0:08:28.7]} 14... Ne4 {[%clk 0:06:58.8]} 15. Bxe4 {[%clk 0:08:19.5]} 15... dxe4 {[%clk 0:06:57.1]} 16. Rfe1 {[%clk 0:07:59.3]} 16... f6 {[%clk 0:06:42.2]} 17. Bf4 {[%clk 0:07:54.9]} 17... fxe5 {[%clk 0:06:36.8]} 18. Bxe5 {[%clk 0:07:54.8]} 18... Qd5 {[%clk 0:05:25.5]} 19. g4 {[%clk 0:07:17.7]} 19... Nh4 {[%clk 0:05:09.7]} 20. Qe3 {[%clk 0:07:13.9]} 20... Bxg4 {[%clk 0:04:45.2]} 21. Qg5 {[%clk 0:07:09.4]} 21... Nf3+ {[%clk 0:04:44.4]} 0-1